Workbook

Sheet Hoja1
B4: EMPRESA DE GENERACION HIDROELECTRICA DOMINICANA
B5: Estado de Rendimiento Financiero//Provisional
B6: Del Ejercicio Terminado al 31 de Diciembre del 2024 y 2023
B7: (Valores en RD$ en MM)
D10: 2024 | E10: 2023
C11: Ingresos
C12: Ingresos por trans. contraprestación (Nota 19) | D12: =-SUMIF('[1]BALANZA 2024'!G:G,C12,'[1]BALANZA 2024'!C:C) -> 14,991,857,216.41 | E12: =-SUMIF('[1]BALANZA 2024'!G:G,C12,'[1]BALANZA 2024'!D:D) -> 14,900,786,615.99
C13: Transferencias y Donaciones (Nota 20) | D13: =-SUMIF('[1]BALANZA 2024'!G:G,C13,'[1]BALANZA 2024'!C:C) -> 0 | E13: =-SUMIF('[1]BALANZA 2024'!G:G,C13,'[1]BALANZA 2024'!D:D) -> 0
C14: Otros Ingresos (Nota 20) | D14: =-SUMIF('[1]BALANZA 2024'!G:G,C14,'[1]BALANZA 2024'!C:C) -> 2,589,498,057.05 | E14: =-SUMIF('[1]BALANZA 2024'!G:G,C14,'[1]BALANZA 2024'!D:D) -> 2,746,980,507.07
C15: Total Ingresos | D15: =SUM(D12:D14) -> 17,581,355,273.46 | E15: =SUM(E12:E14) -> 17,647,767,123.06
C18: Costos de Operación (Nota 21) | D18: =SUMIF('[1]BALANZA 2024'!G:G,C18,'[1]BALANZA 2024'!C:C) -> 5,548,041,731.28 | E18: =SUMIF('[1]BALANZA 2024'!G:G,C18,'[1]BALANZA 2024'!D:D) -> 5,629,161,396.69
C20: Utilidad Bruta | D20: =+D15-D18 -> 12,033,313,542.18 | E20: =+E15-E18 -> 12,018,605,726.37
C21: Gastos Generales, Adminstrativos y Financieros
C22: Sueldos, salarios y beneficios a empleados (Nota 22) | D22: =SUMIF('[1]BALANZA 2024'!G:G,C22,'[1]BALANZA 2024'!C:C) -> 1,647,813,802.08 | E22: =SUMIF('[1]BALANZA 2024'!G:G,C22,'[1]BALANZA 2024'!D:D) -> 1,510,312,737.31
C23: Subvenciones y Ayudas y Donaciones (Nota 23) | D23: =SUMIF('[1]BALANZA 2024'!G:G,C23,'[1]BALANZA 2024'!C:C) -> 346,132,124.52 | E23: =SUMIF('[1]BALANZA 2024'!G:G,C23,'[1]BALANZA 2024'!D:D) -> 330,642,605.19
C24: Suministros y materiales para consumo (Nota 24) | D24: =SUMIF('[1]BALANZA 2024'!G:G,C24,'[1]BALANZA 2024'!C:C) -> 221,085,730.33 | E24: =SUMIF('[1]BALANZA 2024'!G:G,C24,'[1]BALANZA 2024'!D:D) -> 107,000,285.56
C25: Gasto de depreciación y amortización (Nota 25) | D25: =SUMIF('[1]BALANZA 2024'!G:G,C25,'[1]BALANZA 2024'!C:C) -> 217,091,976.10 | E25: =SUMIF('[1]BALANZA 2024'!G:G,C25,'[1]BALANZA 2024'!D:D) -> 192,714,159.77
C26: Otros gastos de servicios (Nota 26) | D26: =SUMIF('[1]BALANZA 2024'!G:G,C26,'[1]BALANZA 2024'!C:C) -> 883,717,527.22 | E26: =SUMIF('[1]BALANZA 2024'!G:G,C26,'[1]BALANZA 2024'!D:D) -> 377,824,666.63
C27: Gastos financieros (Nota 27) | D27: =SUMIF('[1]BALANZA 2024'!G:G,C27,'[1]BALANZA 2024'!C:C) -> 1,479,839,513.22 | E27: =SUMIF('[1]BALANZA 2024'!G:G,C27,'[1]BALANZA 2024'!D:D) -> 1,992,180,689.67
C28: Total Gastos GA&F | D28: =SUM(D22:D27) -> 4,795,680,673.47 | E28: =SUM(E22:E27) -> 4,510,675,144.13
C31: Resultados positivo (ahorro) / negativo (desahorro) | D31: =+D20-D28 -> 7,237,632,868.71 | E31: =+E20-E28 -> 7,507,930,582.24
B34: Las notas son parte integral de estos Estados Financieros.
C36: PREPARADO POR: | D36: REVISADO POR: | E36: REVISADO POR:
C39: Lic.Cesar H.Tejeda | D39: Lic.Diovanny Manzanillo | E39: Lic.Diovanny Manzanillo
C40: Subdirector Financiero | D40: Director Financiero | E40: Director Financiero
